Workbook

Sheet Форма 1
AX1: Приложение 2
A3: Ячейки не объединяются Ячейки с числовыми данными, одновременно содержащими текст или другие числовые значения, учитываться не будут Графы "ПРОВЕРКА" не удаляются и не редактируются
A5: Наименование образовательной организации | B5: Ведомственная принадлежность: федеральная/ региональная/ муниципальная/ частная | C5: Тип: ПОО, ОО ВО | D5: Код профессии, специальности* | E5: Номер строки | F5: Наименование показателей (категория выпускников) (редактирование наименовани не допускается) | G5: Выпуск в 2021 году | H5: Фактическое распределение выпускников, завершивших обучение в 2021 календарном году** | AB5: Прогнозируемое распределение выпускников, завершивших обучение в 2021 календарном году** | AT5: Причины, по которым выпускники находятся под риском нетрудоустройства, и принимаемые меры (тезисно) | AU5: ПРОВЕРКА СУММ | AV5: ПРОВЕРКА СУММ | AW5: ПРОВЕРКА ЗАПОЛНЕНИЯ ГРАФ 1-6 | AX5: ПРОВЕРКА ФОРМАТОВ
H6: Занятые выпускники | N6: Призваны в Вооруженные Силы | P6: Продолжили обучение | R6: Находятся в отпуске по уходу за ребенком | T6: Находящиеся под риском нетрудоустройства | V6: в том числе (из гр. 22): состоят на учете в центрах занятости в качестве ищущих работу или безработных | W6: Прочее: смерть, переезд за пределы Российской Федерации, семейные обстоятельства, по состоянию здоровья и др.*** | Z6: Не определились (ожидают результатов приемной кампании, ожидают призыва, находятся в активном поиске работы, собирают документы для открытия ИП. Выпускники временно не заняты, но их занятости ничего не угрожает) | AB6: Занятые выпускники | AH6: Продолжили обучение | AJ6: Призваны в Вооруженные Силы | AL6: Находятся в отпуске по уходу за ребенком | AN6: Находящиеся под риском нетрудоустройства выпускники | AP6: в том числе (из гр. 42): состоят на учете в центрах занятости в качестве ищущих работу или безработных | AQ6: Прочее: смерть, переезд за пределы Российской Федерации, семейные обстоятельства, по состоянию здоровья и др.***
H7: Трудоустройство | J7: Индивидуальные предприниматели | L7: Самозанятые | AB7: Трудоустройство | AD7: Индивидуальные предприниматели | AF7: Самозанятые
G8: человек | H8: человек | I8: % | J8: человек | K8: % | L8: человек | M8: % | N8: человек | O8: % | P8: человек | Q8: % | R8: человек | S8: % | T8: человек | U8: % | V8: человек | W8: человек (всего) | X8: % | Y8: перечислить причины, указав число человек | Z8: человек | AA8: % | AB8: человек | AC8: % | AD8: человек | AE8: % | AF8: человек | AG8: % | AH8: человек | AI8: % | AJ8: человек | AK8: % | AL8: человек | AM8: % | AN8: человек | AO8: % | AP8: человек | AQ8: человек (всего) | AR8: % | AS8: перечислить причины
A9: 01 | B9: 02 | C9: 03 | D9: 04 | E9: 05 | F9: 06 | G9: 07 | H9: 08 | I9: 09 | J9: 10 | K9: 11 | L9: 12 | M9: 13 | N9: 14 | O9: 15 | P9: 16 | Q9: 17 | R9: 18 | S9: 19 | T9: 20 | U9: 21 | V9: 22 | W9: 23 | X9: 24 | Y9: 25 | Z9: 26 | AA9: 27 | AB9: 28 | AC9: 29 | AD9: 30 | AE9: 31 | AF9: 32 | AG9: 33 | AH9: 34 | AI9: 35 | AJ9: 36 | AK9: 37 | AL9: 38 | AM9: 39 | AN9: 40 | AO9: 41 | AP9: 42 | AQ9: 43 | AR9: 44 | AS9: 45 | AT9: 46 | AU9: 47 | AV9: 48 | AW9: 49 | AX9: 50
A10: ГАПОУ "Арский педагогический колледж им.Г.Тукая" | B10: региональная | C10: ПОО | D10: 44.02.01 | E10: 01 | F10: Всего | G10: 68 | H10: 61 | I10: =IFERROR(H10/G10,0) -> 89.71% | J10: 0 | K10: =IFERROR(J10/G10,0) -> 0.00% | L10: 1 | M10: =IFERROR(L10/G10,0) -> 1.47% | N10: 0 | O10: =IFERROR(N10/G10,0) -> 0.00% | P10: 2 | Q10: =IFERROR(P10/G10,0) -> 2.94% | R10: 3.00 | S10: =IFERROR(R10/G10,0) -> 4.41% | T10: 0 | U10: =IFERROR(T10/G10,0) -> 0.00% | V10: 0 | W10: 0 | X10: =IFERROR(W10/G10,0) -> 0.00% | Y10: 0 | Z10: 1 | AA10: =IFERROR(Z10/G10,0) -> 1.47% | AC10: =IFERROR(AB10/G10,0) -> 0.00% | AE10: =IFERROR(AD10/G10,0) -> 0.00% | AG10: =IFERROR(AF10/G10,0) -> 0.00% | AI10: =IFERROR(AH10/G10,0) -> 0.00% | AK10: =IFERROR(AJ10/G10,0) -> 0.00% | AM10: =IFERROR(AL10/G10,0) -> 0.00% | AO10: =IFERROR(AN10/G10,0) -> 0.00% | AR10: =IFERROR(AQ10/G10,0) -> 0.00% | AU10: =IF(G10=H10+J10+N10+T10+W10+L10+P10+R10+Z10,"принято","ВЫПУСК НЕ СОВПАДАЕТ С СУММОЙ ПО ГРАФАМ") -> принято | AV10: =IF(G10=AB10+AD10+AH10+AJ10+AL10+AF10+AN10+AQ10,"принято","ВЫПУСК НЕ СОВПАДАЕТ С СУММОЙ ПО ГРАФАМ") -> ВЫПУСК НЕ СОВПАДАЕТ С СУММОЙ ПО ГРАФАМ | AW10: =IF(A10<>0,IF(A10<>0,IF(A10<>0,IF(B10<>0,IF(C10<>0,IF(D10<>0,"принято","ГРАФЫ ЗАПОЛНЕНЫ НЕ ПОЛНОСТЬЮ"),"ГРАФЫ ЗАПОЛНЕНЫ НЕ ПОЛНОСТЬЮ"),"ГРАФЫ ЗАПОЛНЕНЫ НЕ ПОЛНОСТЬЮ"),"ГРАФЫ ЗАПОЛНЕНЫ НЕ ПОЛНОСТЬЮ"),"ГРАФЫ ЗАПОЛНЕНЫ НЕ ПОЛНОСТЬЮ"),"ГРАФЫ ЗАПОЛНЕНЫ НЕ ПОЛНОСТЬЮ") -> принято | AX10: =IF(C10="ПОО","принято",IF(C10="ОО ВО","принято",IF(C10=0,"принято","ВВЕДЕНЫ НЕКОРРЕКТНЫЕ ЗНАЧЕНИЯ"))) -> принято
A11: ГАПОУ "Арский педагогический колледж им.Г.Тукая" | B11: региональная | C11: ПОО | D11: 44.02.01 | E11: 02 | F11: Лица с ограниченными возможностями здоровья | G11: 0 | H11: 0 | I11: =IFERROR(H11/G11,0) -> 0.00% | J11: 0 | K11: =IFERROR(J11/G11,0) -> 0.00% | L11: 0 | M11: =IFERROR(L11/G11,0) -> 0.00% | N11: 0 | O11: =IFERROR(N11/G11,0) -> 0.00% | P11: 0 | Q11: =IFERROR(P11/G11,0) -> 0.00% | R11: 0.00 | S11: =IFERROR(R11/G11,0) -> 0.00% | T11: 0 | U11: =IFERROR(T11/G11,0) -> 0.00% | V11: 0 | W11: 0 | X11: =IFERROR(W11/G11,0) -> 0.00% | Y11: 0 | Z11: 0 | AA11: =IFERROR(Z11/G11,0) -> 0.00% | AC11: =IFERROR(AB11/G11,0) -> 0.00% | AE11: =IFERROR(AD11/G11,0) -> 0.00% | AG11: =IFERROR(AF11/G11,0) -> 0.00% | AI11: =IFERROR(AH11/G11,0) -> 0.00% | AK11: =IFERROR(AJ11/G11,0) -> 0.00% | AM11: =IFERROR(AL11/G11,0) -> 0.00% | AO11: =IFERROR(AN11/G11,0) -> 0.00% | AR11: =IFERROR(AQ11/G11,0) -> 0.00% | AU11: =IF(G11=H11+J11+N11+T11+W11+L11+P11+R11+Z11,"принято","ВЫПУСК НЕ СОВПАДАЕТ С СУММОЙ ПО ГРАФАМ") -> принято | AV11: =IF(G11=AB11+AD11+AH11+AJ11+AL11+AF11+AN11+AQ11,"принято","ВЫПУСК НЕ СОВПАДАЕТ С СУММОЙ ПО ГРАФАМ") -> принято | AW11: =IF(A11<>0,IF(A11<>0,IF(A11<>0,IF(B11<>0,IF(C11<>0,IF(D11<>0,"принято","ГРАФЫ ЗАПОЛНЕНЫ НЕ ПОЛНОСТЬЮ"),"ГРАФЫ ЗАПОЛНЕНЫ НЕ ПОЛНОСТЬЮ"),"ГРАФЫ ЗАПОЛНЕНЫ НЕ ПОЛНОСТЬЮ"),"ГРАФЫ ЗАПОЛНЕНЫ НЕ ПОЛНОСТЬЮ"),"ГРАФЫ ЗАПОЛНЕНЫ НЕ ПОЛНОСТЬЮ"),"ГРАФЫ ЗАПОЛНЕНЫ НЕ ПОЛНОСТЬЮ") -> принято | AX11: =IF(C11="ПОО","принято",IF(C11="ОО ВО","принято",IF(C11=0,"принято","ВВЕДЕНЫ НЕКОРРЕКТНЫЕ ЗНАЧЕНИЯ"))) -> принято
A12: ГАПОУ "Арский педагогический колледж им.Г.Тукая" | B12: региональная | C12: ПОО | D12: 44.02.01 | E12: 03 | F12: из них (из строки 02): инвалиды и дети-инвалиды | G12: 0 | H12: 0 | I12: 0.00% | J12: 0 | K12: 0.00% | L12: 0 | M12: 0.00% | N12: 0 | O12: 0.00% | P12: 0 | Q12: 0.00% | R12: 0.00 | S12: 0.00% | T12: 0 | U12: =IFERROR(T12/G12,0) -> 0.00% | V12: 0 | W12: 0 | X12: =IFERROR(W12/G12,0) -> 0.00% | Y12: 0 | Z12: 0 | AA12: 0.00% | AC12: =IFERROR(AB12/G12,0) -> 0.00% | AE12: =IFERROR(AD12/G12,0) -> 0.00% | AG12: =IFERROR(AF12/G12,0) -> 0.00% | AI12: =IFERROR(AH12/G12,0) -> 0.00% | AK12: =IFERROR(AJ12/G12,0) -> 0.00% | AM12: =IFERROR(AL12/G12,0) -> 0.00% | AO12: =IFERROR(AN12/G12,0) -> 0.00% | AR12: =IFERROR(AQ12/G12,0) -> 0.00% | AU12: принято | AV12: принято | AW12: =IF(A12<>0,IF(A12<>0,IF(A12<>0,IF(B12<>0,IF(C12<>0,IF(D12<>0,"принято","ГРАФЫ ЗАПОЛНЕНЫ НЕ ПОЛНОСТЬЮ"),"ГРАФЫ ЗАПОЛНЕНЫ НЕ ПОЛНОСТЬЮ"),"ГРАФЫ ЗАПОЛНЕНЫ НЕ ПОЛНОСТЬЮ"),"ГРАФЫ ЗАПОЛНЕНЫ НЕ ПОЛНОСТЬЮ"),"ГРАФЫ ЗАПОЛНЕНЫ НЕ ПОЛНОСТЬЮ"),"ГРАФЫ ЗАПОЛНЕНЫ НЕ ПОЛНОСТЬЮ") -> принято | AX12: =IF(C12="ПОО","принято",IF(C12="ОО ВО","принято",IF(C12=0,"принято","ВВЕДЕНЫ НЕКОРРЕКТНЫЕ ЗНАЧЕНИЯ"))) -> принято
A13: ГАПОУ "Арский педагогический колледж им.Г.Тукая" | B13: региональная | C13: ПОО | D13: 44.02.01 | E13: 04 | F13: Инвалиды и дети-инвалиды (кроме учтенных в строке 03) | G13: 1 | H13: 1 | I13: 100.00% | J13: 0 | K13: 0.00% | L13: 0 | M13: 0.00% | N13: 0 | O13: 0.00% | P13: 0 | Q13: 0.00% | R13: 0.00 | S13: 0.00% | T13: 0 | U13: =IFERROR(T13/G13,0) -> 0.00% | V13: 0 | W13: 0 | X13: =IFERROR(W13/G13,0) -> 0.00% | Y13: 0 | Z13: 0 | AA13: 0.00% | AC13: =IFERROR(AB13/G13,0) -> 0.00% | AE13: =IFERROR(AD13/G13,0) -> 0.00% | AG13: =IFERROR(AF13/G13,0) -> 0.00% | AI13: =IFERROR(AH13/G13,0) -> 0.00% | AK13: =IFERROR(AJ13/G13,0) -> 0.00% | AM13: =IFERROR(AL13/G13,0) -> 0.00% | AO13: =IFERROR(AN13/G13,0) -> 0.00% | AR13: =IFERROR(AQ13/G13,0) -> 0.00% | AU13: принято | AV13: ВЫПУСК НЕ СОВПАДАЕТ С СУММОЙ ПО ГРАФАМ | AW13: =IF(A13<>0,IF(A13<>0,IF(A13<>0,IF(B13<>0,IF(C13<>0,IF(D13<>0,"принято","ГРАФЫ ЗАПОЛНЕНЫ НЕ ПОЛНОСТЬЮ"),"ГРАФЫ ЗАПОЛНЕНЫ НЕ ПОЛНОСТЬЮ"),"ГРАФЫ ЗАПОЛНЕНЫ НЕ ПОЛНОСТЬЮ"),"ГРАФЫ ЗАПОЛНЕНЫ НЕ ПОЛНОСТЬЮ"),"ГРАФЫ ЗАПОЛНЕНЫ НЕ ПОЛНОСТЬЮ"),"ГРАФЫ ЗАПОЛНЕНЫ НЕ ПОЛНОСТЬЮ") -> принято | AX13: =IF(C13="ПОО","принято",IF(C13="ОО ВО","принято",IF(C13=0,"принято","ВВЕДЕНЫ НЕКОРРЕКТНЫЕ ЗНАЧЕНИЯ"))) -> принято
A14: ГАПОУ "Арский педагогический колледж им.Г.Тукая" | B14: региональная | C14: ПОО | D14: 44.02.01 | E14: 05 | F14: Имеют договор о целевом обучении | G14: 0 | H14: 0 | I14: 0.00% | J14: 0 | K14: 0.00% | L14: 0 | M14: 0.00% | N14: 0 | O14: 0.00% | P14: 0 | Q14: 0.00% | R14: 0.00 | S14: 0.00% | T14: 0 | U14: =IFERROR(T14/G14,0) -> 0.00% | V14: 0 | W14: 0 | X14: =IFERROR(W14/G14,0) -> 0.00% | Y14: 0 | Z14: 0 | AA14: 0.00% | AC14: =IFERROR(AB14/G14,0) -> 0.00% | AE14: =IFERROR(AD14/G14,0) -> 0.00% | AG14: =IFERROR(AF14/G14,0) -> 0.00% | AI14: =IFERROR(AH14/G14,0) -> 0.00% | AK14: =IFERROR(AJ14/G14,0) -> 0.00% | AM14: =IFERROR(AL14/G14,0) -> 0.00% | AO14: =IFERROR(AN14/G14,0) -> 0.00% | AR14: =IFERROR(AQ14/G14,0) -> 0.00% | AU14: принято | AV14: принято | AW14: =IF(A14<>0,IF(A14<>0,IF(A14<>0,IF(B14<>0,IF(C14<>0,IF(D14<>0,"принято","ГРАФЫ ЗАПОЛНЕНЫ НЕ ПОЛНОСТЬЮ"),"ГРАФЫ ЗАПОЛНЕНЫ НЕ ПОЛНОСТЬЮ"),"ГРАФЫ ЗАПОЛНЕНЫ НЕ ПОЛНОСТЬЮ"),"ГРАФЫ ЗАПОЛНЕНЫ НЕ ПОЛНОСТЬЮ"),"ГРАФЫ ЗАПОЛНЕНЫ НЕ ПОЛНОСТЬЮ"),"ГРАФЫ ЗАПОЛНЕНЫ НЕ ПОЛНОСТЬЮ") -> принято | AX14: =IF(C14="ПОО","принято",IF(C14="ОО ВО","принято",IF(C14=0,"принято","ВВЕДЕНЫ НЕКОРРЕКТНЫЕ ЗНАЧЕНИЯ"))) -> принято
A15: ГАПОУ "Арский педагогический колледж им.Г.Тукая" | B15: региональная | C15: ПОО | D15: 44.02.01 | E15: 06 | F15: из них (из строки 05): Лица с ограниченными возможностями здоровья (имеющие договор о целевом обучении) | G15: 0 | H15: 0 | I15: 0.00% | J15: 0 | K15: 0.00% | L15: 0 | M15: 0.00% | N15: 0 | O15: 0.00% | P15: 0 | Q15: 0.00% | R15: 0.00 | S15: 0.00% | T15: 0 | U15: 0.00% | V15: 0 | W15: 0 | X15: 0.00% | Y15: 0 | Z15: 0 | AA15: 0.00% | AC15: 0.00% | AE15: 0.00% | AG15: =IFERROR(AF15/G15,0) -> 0.00% | AI15: 0.00% | AK15: 0.00% | AM15: 0.00% | AO15: 0.00% | AR15: 0.00% | AU15: принято | AV15: принято | AW15: принято | AX15: принято
A16: ГАПОУ "Арский педагогический колледж им.Г.Тукая" | B16: региональная | C16: ПОО | D16: 44.02.01 | E16: 07 | F16: из строки 06: инвалиды и дети-инвалиды (имеющие договор о целевом обучении) | G16: 0 | H16: 0 | I16: 0.00% | J16: 0 | K16: 0.00% | L16: 0 | M16: 0.00% | N16: 0 | O16: 0.00% | P16: 0 | Q16: 0.00% | R16: 0.00 | S16: 0.00% | T16: 0 | U16: 0.00% | V16: 0 | W16: 0 | X16: 0.00% | Y16: 0 | Z16: 0 | AA16: 0.00% | AC16: 0.00% | AE16: 0.00% | AG16: 0.00% | AI16: 0.00% | AK16: 0.00% | AM16: 0.00% | AO16: 0.00% | AR16: 0.00% | AU16: принято | AV16: принято | AW16: принято | AX16: принято
A17: ГАПОУ "Арский педагогический колледж им.Г.Тукая" | B17: региональная | C17: ПОО | D17: 44.02.01 | E17: 08 | F17: из строки 05 инвалиды и дети-инвалиды (кроме учтенных в строке 07) (имеющие договор о целевом обучении) | G17: 0 | H17: 0 | I17: 0.00% | J17: 0 | K17: 0.00% | L17: 0 | M17: 0.00% | N17: 0 | O17: 0.00% | P17: 0 | Q17: 0.00% | R17: 0.00 | S17: 0.00% | T17: 0 | U17: =IFERROR(T17/G17,0) -> 0.00% | V17: 0 | W17: 0 | X17: =IFERROR(W17/G17,0) -> 0.00% | Y17: 0 | Z17: 0 | AA17: 0.00% | AC17: =IFERROR(AB17/G17,0) -> 0.00% | AE17: =IFERROR(AD17/G17,0) -> 0.00% | AG17: =IFERROR(AF17/G17,0) -> 0.00% | AI17: =IFERROR(AH17/G17,0) -> 0.00% | AK17: =IFERROR(AJ17/G17,0) -> 0.00% | AM17: =IFERROR(AL17/G17,0) -> 0.00% | AO17: =IFERROR(AN17/G17,0) -> 0.00% | AR17: =IFERROR(AQ17/G17,0) -> 0.00% | AU17: принято | AV17: принято | AW17: принято | AX17: принято
A18: ГАПОУ "Арский педагогический колледж им.Г.Тукая" | B18: региональная | C18: ПОО | D18: 44.02.02 | E18: 01 | F18: Всего | G18: 79 | H18: 61 | I18: =IFERROR(H18/G18,0) -> 77.22% | J18: 0 | K18: =IFERROR(J18/G18,0) -> 0.00% | L18: 0 | M18: =IFERROR(L18/G18,0) -> 0.00% | N18: 5 | O18: =IFERROR(N18/G18,0) -> 6.33% | P18: 2 | Q18: =IFERROR(P18/G18,0) -> 2.53% | R18: 3.00 | S18: =IFERROR(R18/G18,0) -> 3.80% | T18: 1 | U18: =IFERROR(T18/G18,0) -> 1.27% | V18: 1 | W18: 0 | X18: =IFERROR(W18/G18,0) -> 0.00% | Y18: 0 | Z18: 7 | AA18: =IFERROR(Z18/G18,0) -> 8.86% | AC18: =IFERROR(AB18/G18,0) -> 0.00% | AE18: =IFERROR(AD18/G18,0) -> 0.00% | AG18: =IFERROR(AF18/G18,0) -> 0.00% | AI18: =IFERROR(AH18/G18,0) -> 0.00% | AK18: =IFERROR(AJ18/G18,0) -> 0.00% | AM18: =IFERROR(AL18/G18,0) -> 0.00% | AO18: =IFERROR(AN18/G18,0) -> 0.00% | AR18: =IFERROR(AQ18/G18,0) -> 0.00% | AU18: =IF(G18=H18+J18+N18+T18+W18+L18+P18+R18+Z18,"принято","ВЫПУСК НЕ СОВПАДАЕТ С СУММОЙ ПО ГРАФАМ") -> принято | AV18: =IF(G18=AB18+AD18+AH18+AJ18+AL18+AF18+AN18+AQ18,"принято","ВЫПУСК НЕ СОВПАДАЕТ С СУММОЙ ПО ГРАФАМ") -> ВЫПУСК НЕ СОВПАДАЕТ С СУММОЙ ПО ГРАФАМ | AW18: =IF(A18<>0,IF(A18<>0,IF(A18<>0,IF(B18<>0,IF(C18<>0,IF(D18<>0,"принято","ГРАФЫ ЗАПОЛНЕНЫ НЕ ПОЛНОСТЬЮ"),"ГРАФЫ ЗАПОЛНЕНЫ НЕ ПОЛНОСТЬЮ"),"ГРАФЫ ЗАПОЛНЕНЫ НЕ ПОЛНОСТЬЮ"),"ГРАФЫ ЗАПОЛНЕНЫ НЕ ПОЛНОСТЬЮ"),"ГРАФЫ ЗАПОЛНЕНЫ НЕ ПОЛНОСТЬЮ"),"ГРАФЫ ЗАПОЛНЕНЫ НЕ ПОЛНОСТЬЮ") -> принято | AX18: =IF(C18="ПОО","принято",IF(C18="ОО ВО","принято",IF(C18=0,"принято","ВВЕДЕНЫ НЕКОРРЕКТНЫЕ ЗНАЧЕНИЯ"))) -> принято
A19: ГАПОУ "Арский педагогический колледж им.Г.Тукая" | B19: региональная | C19: ПОО | D19: 44.02.02 | E19: 02 | F19: Лица с ограниченными возможностями здоровья | G19: 0 | H19: 0 | I19: =IFERROR(H19/G19,0) -> 0.00% | J19: 0 | K19: =IFERROR(J19/G19,0) -> 0.00% | L19: 0 | M19: =IFERROR(L19/G19,0) -> 0.00% | N19: 0 | O19: =IFERROR(N19/G19,0) -> 0.00% | P19: 0 | Q19: =IFERROR(P19/G19,0) -> 0.00% | R19: 0.00 | S19: =IFERROR(R19/G19,0) -> 0.00% | T19: 0 | U19: =IFERROR(T19/G19,0) -> 0.00% | V19: 0 | W19: 0 | X19: =IFERROR(W19/G19,0) -> 0.00% | Y19: 0 | Z19: 0 | AA19: =IFERROR(Z19/G19,0) -> 0.00% | AC19: =IFERROR(AB19/G19,0) -> 0.00% | AE19: =IFERROR(AD19/G19,0) -> 0.00% | AG19: =IFERROR(AF19/G19,0) -> 0.00% | AI19: =IFERROR(AH19/G19,0) -> 0.00% | AK19: =IFERROR(AJ19/G19,0) -> 0.00% | AM19: =IFERROR(AL19/G19,0) -> 0.00% | AO19: =IFERROR(AN19/G19,0) -> 0.00% | AR19: =IFERROR(AQ19/G19,0) -> 0.00% | AU19: =IF(G19=H19+J19+N19+T19+W19+L19+P19+R19+Z19,"принято","ВЫПУСК НЕ СОВПАДАЕТ С СУММОЙ ПО ГРАФАМ") -> принято | AV19: =IF(G19=AB19+AD19+AH19+AJ19+AL19+AF19+AN19+AQ19,"принято","ВЫПУСК НЕ СОВПАДАЕТ С СУММОЙ ПО ГРАФАМ") -> принято | AW19: =IF(A19<>0,IF(A19<>0,IF(A19<>0,IF(B19<>0,IF(C19<>0,IF(D19<>0,"принято","ГРАФЫ ЗАПОЛНЕНЫ НЕ ПОЛНОСТЬЮ"),"ГРАФЫ ЗАПОЛНЕНЫ НЕ ПОЛНОСТЬЮ"),"ГРАФЫ ЗАПОЛНЕНЫ НЕ ПОЛНОСТЬЮ"),"ГРАФЫ ЗАПОЛНЕНЫ НЕ ПОЛНОСТЬЮ"),"ГРАФЫ ЗАПОЛНЕНЫ НЕ ПОЛНОСТЬЮ"),"ГРАФЫ ЗАПОЛНЕНЫ НЕ ПОЛНОСТЬЮ") -> принято | AX19: =IF(C19="ПОО","принято",IF(C19="ОО ВО","принято",IF(C19=0,"принято","ВВЕДЕНЫ НЕКОРРЕКТНЫЕ ЗНАЧЕНИЯ"))) -> принято
A20: ГАПОУ "Арский педагогический колледж им.Г.Тукая" | B20: региональная | C20: ПОО | D20: 44.02.02 | E20: 03 | F20: из них (из строки 02): инвалиды и дети-инвалиды | G20: 0 | H20: 0 | I20: 0.00% | J20: 0 | K20: 0.00% | L20: 0 | M20: 0.00% | N20: 0 | O20: 0.00% | P20: 0 | Q20: 0.00% | R20: 0.00 | S20: 0.00% | T20: 0 | U20: =IFERROR(T20/G20,0) -> 0.00% | V20: 0 | W20: 0 | X20: =IFERROR(W20/G20,0) -> 0.00% | Y20: 0 | Z20: 0 | AA20: 0.00% | AC20: =IFERROR(AB20/G20,0) -> 0.00% | AE20: =IFERROR(AD20/G20,0) -> 0.00% | AG20: =IFERROR(AF20/G20,0) -> 0.00% | AI20: =IFERROR(AH20/G20,0) -> 0.00% | AK20: =IFERROR(AJ20/G20,0) -> 0.00% | AM20: =IFERROR(AL20/G20,0) -> 0.00% | AO20: =IFERROR(AN20/G20,0) -> 0.00% | AR20: =IFERROR(AQ20/G20,0) -> 0.00% | AU20: принято | AV20: принято | AW20: =IF(A20<>0,IF(A20<>0,IF(A20<>0,IF(B20<>0,IF(C20<>0,IF(D20<>0,"принято","ГРАФЫ ЗАПОЛНЕНЫ НЕ ПОЛНОСТЬЮ"),"ГРАФЫ ЗАПОЛНЕНЫ НЕ ПОЛНОСТЬЮ"),"ГРАФЫ ЗАПОЛНЕНЫ НЕ ПОЛНОСТЬЮ"),"ГРАФЫ ЗАПОЛНЕНЫ НЕ ПОЛНОСТЬЮ"),"ГРАФЫ ЗАПОЛНЕНЫ НЕ ПОЛНОСТЬЮ"),"ГРАФЫ ЗАПОЛНЕНЫ НЕ ПОЛНОСТЬЮ") -> принято | AX20: =IF(C20="ПОО","принято",IF(C20="ОО ВО","принято",IF(C20=0,"принято","ВВЕДЕНЫ НЕКОРРЕКТНЫЕ ЗНАЧЕНИЯ"))) -> принято
A21: ГАПОУ "Арский педагогический колледж им.Г.Тукая" | B21: региональная | C21: ПОО | D21: 44.02.02 | E21: 04 | F21: Инвалиды и дети-инвалиды (кроме учтенных в строке 03) | G21: 0 | H21: 0 | I21: 0.00% | J21: 0 | K21: 0.00% | L21: 0 | M21: 0.00% | N21: 0 | O21: 0.00% | P21: 0 | Q21: 0.00% | R21: 0.00 | S21: 0.00% | T21: 0 | U21: =IFERROR(T21/G21,0) -> 0.00% | V21: 0 | W21: 0 | X21: =IFERROR(W21/G21,0) -> 0.00% | Y21: 0 | Z21: 0 | AA21: 0.00% | AC21: =IFERROR(AB21/G21,0) -> 0.00% | AE21: =IFERROR(AD21/G21,0) -> 0.00% | AG21: =IFERROR(AF21/G21,0) -> 0.00% | AI21: =IFERROR(AH21/G21,0) -> 0.00% | AK21: =IFERROR(AJ21/G21,0) -> 0.00% | AM21: =IFERROR(AL21/G21,0) -> 0.00% | AO21: =IFERROR(AN21/G21,0) -> 0.00% | AR21: =IFERROR(AQ21/G21,0) -> 0.00% | AU21: принято | AV21: принято | AW21: =IF(A21<>0,IF(A21<>0,IF(A21<>0,IF(B21<>0,IF(C21<>0,IF(D21<>0,"принято","ГРАФЫ ЗАПОЛНЕНЫ НЕ ПОЛНОСТЬЮ"),"ГРАФЫ ЗАПОЛНЕНЫ НЕ ПОЛНОСТЬЮ"),"ГРАФЫ ЗАПОЛНЕНЫ НЕ ПОЛНОСТЬЮ"),"ГРАФЫ ЗАПОЛНЕНЫ НЕ ПОЛНОСТЬЮ"),"ГРАФЫ ЗАПОЛНЕНЫ НЕ ПОЛНОСТЬЮ"),"ГРАФЫ ЗАПОЛНЕНЫ НЕ ПОЛНОСТЬЮ") -> принято | AX21: =IF(C21="ПОО","принято",IF(C21="ОО ВО","принято",IF(C21=0,"принято","ВВЕДЕНЫ НЕКОРРЕКТНЫЕ ЗНАЧЕНИЯ"))) -> принято
A22: ГАПОУ "Арский педагогический колледж им.Г.Тукая" | B22: региональная | C22: ПОО | D22: 44.02.02 | E22: 05 | F22: Имеют договор о целевом обучении | G22: 0 | H22: 0 | I22: 0.00% | J22: 0 | K22: 0.00% | L22: 0 | M22: 0.00% | N22: 0 | O22: 0.00% | P22: 0 | Q22: 0.00% | R22: 0.00 | S22: 0.00% | T22: 0 | U22: =IFERROR(T22/G22,0) -> 0.00% | V22: 0 | W22: 0 | X22: =IFERROR(W22/G22,0) -> 0.00% | Y22: 0 | Z22: 0 | AA22: 0.00% | AC22: =IFERROR(AB22/G22,0) -> 0.00% | AE22: =IFERROR(AD22/G22,0) -> 0.00% | AG22: =IFERROR(AF22/G22,0) -> 0.00% | AI22: =IFERROR(AH22/G22,0) -> 0.00% | AK22: =IFERROR(AJ22/G22,0) -> 0.00% | AM22: =IFERROR(AL22/G22,0) -> 0.00% | AO22: =IFERROR(AN22/G22,0) -> 0.00% | AR22: =IFERROR(AQ22/G22,0) -> 0.00% | AU22: принято | AV22: принято | AW22: =IF(A22<>0,IF(A22<>0,IF(A22<>0,IF(B22<>0,IF(C22<>0,IF(D22<>0,"принято","ГРАФЫ ЗАПОЛНЕНЫ НЕ ПОЛНОСТЬЮ"),"ГРАФЫ ЗАПОЛНЕНЫ НЕ ПОЛНОСТЬЮ"),"ГРАФЫ ЗАПОЛНЕНЫ НЕ ПОЛНОСТЬЮ"),"ГРАФЫ ЗАПОЛНЕНЫ НЕ ПОЛНОСТЬЮ"),"ГРАФЫ ЗАПОЛНЕНЫ НЕ ПОЛНОСТЬЮ"),"ГРАФЫ ЗАПОЛНЕНЫ НЕ ПОЛНОСТЬЮ") -> принято | AX22: =IF(C22="ПОО","принято",IF(C22="ОО ВО","принято",IF(C22=0,"принято","ВВЕДЕНЫ НЕКОРРЕКТНЫЕ ЗНАЧЕНИЯ"))) -> принято
A23: ГАПОУ "Арский педагогический колледж им.Г.Тукая" | B23: региональная | C23: ПОО | D23: 44.02.02 | E23: 06 | F23: из них (из строки 05): Лица с ограниченными возможностями здоровья (имеющие договор о целевом обучении) | G23: 0 | H23: 0 | I23: 0.00% | J23: 0 | K23: 0.00% | L23: 0 | M23: 0.00% | N23: 0 | O23: 0.00% | P23: 0 | Q23: 0.00% | R23: 0.00 | S23: 0.00% | T23: 0 | U23: 0.00% | V23: 0 | W23: 0 | X23: 0.00% | Y23: 0 | Z23: 0 | AA23: 0.00% | AC23: 0.00% | AE23: 0.00% | AG23: 0.00% | AI23: 0.00% | AK23: 0.00% | AM23: 0.00% | AO23: 0.00% | AR23: 0.00% | AU23: принято | AV23: принято | AW23: принято | AX23: принято
A24: ГАПОУ "Арский педагогический колледж им.Г.Тукая" | B24: региональная | C24: ПОО | D24: 44.02.02 | E24: 07 | F24: из строки 06: инвалиды и дети-инвалиды (имеющие договор о целевом обучении) | G24: 0 | H24: 0 | I24: 0.00% | J24: 0 | K24: 0.00% | L24: 0 | M24: 0.00% | N24: 0 | O24: 0.00% | P24: 0 | Q24: 0.00% | R24: 0.00 | S24: 0.00% | T24: 0 | U24: 0.00% | V24: 0 | W24: 0 | X24: 0.00% | Y24: 0 | Z24: 0 | AA24: 0.00% | AC24: 0.00% | AE24: 0.00% | AG24: 0.00% | AI24: 0.00% | AK24: 0.00% | AM24: 0.00% | AO24: 0.00% | AR24: 0.00% | AU24: принято | AV24: принято | AW24: принято | AX24: принято
A25: ГАПОУ "Арский педагогический колледж им.Г.Тукая" | B25: региональная | C25: ПОО | D25: 44.02.02 | E25: 08 | F25: из строки 05 инвалиды и дети-инвалиды (кроме учтенных в строке 07) (имеющие договор о целевом обучении) | G25: 0 | H25: 0 | I25: 0.00% | J25: 0 | K25: 0.00% | L25: 0 | M25: 0.00% | N25: 0 | O25: 0.00% | P25: 0 | Q25: 0.00% | R25: 0.00 | S25: 0.00% | T25: 0 | U25: =IFERROR(T25/G25,0) -> 0.00% | V25: 0 | W25: 0 | X25: =IFERROR(W25/G25,0) -> 0.00% | Y25: 0 | Z25: 0 | AA25: 0.00% | AC25: =IFERROR(AB25/G25,0) -> 0.00% | AE25: =IFERROR(AD25/G25,0) -> 0.00% | AG25: =IFERROR(AF25/G25,0) -> 0.00% | AI25: =IFERROR(AH25/G25,0) -> 0.00% | AK25: =IFERROR(AJ25/G25,0) -> 0.00% | AM25: =IFERROR(AL25/G25,0) -> 0.00% | AO25: =IFERROR(AN25/G25,0) -> 0.00% | AR25: =IFERROR(AQ25/G25,0) -> 0.00% | AU25: принято | AV25: принято | AW25: принято | AX25: принято
A26: ГАПОУ "Арский педагогический колледж им.Г.Тукая" | B26: региональная | C26: ПОО | D26: 49.02.01 | E26: 01 | F26: Всего | G26: 27 | H26: 12 | I26: =IFERROR(H26/G26,0) -> 44.44% | J26: 0 | K26: =IFERROR(J26/G26,0) -> 0.00% | L26: 0 | M26: =IFERROR(L26/G26,0) -> 0.00% | N26: 11 | O26: =IFERROR(N26/G26,0) -> 40.74% | P26: 2 | Q26: =IFERROR(P26/G26,0) -> 7.41% | R26: 0.00 | S26: =IFERROR(R26/G26,0) -> 0.00% | T26: 0 | U26: =IFERROR(T26/G26,0) -> 0.00% | V26: 0 | W26: 0 | X26: =IFERROR(W26/G26,0) -> 0.00% | Y26: 0 | Z26: 2 | AA26: =IFERROR(Z26/G26,0) -> 7.41% | AC26: =IFERROR(AB26/G26,0) -> 0.00% | AE26: =IFERROR(AD26/G26,0) -> 0.00% | AG26: =IFERROR(AF26/G26,0) -> 0.00% | AI26: =IFERROR(AH26/G26,0) -> 0.00% | AK26: =IFERROR(AJ26/G26,0) -> 0.00% | AM26: =IFERROR(AL26/G26,0) -> 0.00% | AO26: =IFERROR(AN26/G26,0) -> 0.00% | AR26: =IFERROR(AQ26/G26,0) -> 0.00% | AU26: =IF(G26=H26+J26+N26+T26+W26+L26+P26+R26+Z26,"принято","ВЫПУСК НЕ СОВПАДАЕТ С СУММОЙ ПО ГРАФАМ") -> принято | AV26: =IF(G26=AB26+AD26+AH26+AJ26+AL26+AF26+AN26+AQ26,"принято","ВЫПУСК НЕ СОВПАДАЕТ С СУММОЙ ПО ГРАФАМ") -> ВЫПУСК НЕ СОВПАДАЕТ С СУММОЙ ПО ГРАФАМ | AW26: =IF(A26<>0,IF(A26<>0,IF(A26<>0,IF(B26<>0,IF(C26<>0,IF(D26<>0,"принято","ГРАФЫ ЗАПОЛНЕНЫ НЕ ПОЛНОСТЬЮ"),"ГРАФЫ ЗАПОЛНЕНЫ НЕ ПОЛНОСТЬЮ"),"ГРАФЫ ЗАПОЛНЕНЫ НЕ ПОЛНОСТЬЮ"),"ГРАФЫ ЗАПОЛНЕНЫ НЕ ПОЛНОСТЬЮ"),"ГРАФЫ ЗАПОЛНЕНЫ НЕ ПОЛНОСТЬЮ"),"ГРАФЫ ЗАПОЛНЕНЫ НЕ ПОЛНОСТЬЮ") -> принято | AX26: =IF(C26="ПОО","принято",IF(C26="ОО ВО","принято",IF(C26=0,"принято","ВВЕДЕНЫ НЕКОРРЕКТНЫЕ ЗНАЧЕНИЯ"))) -> принято
A27: ГАПОУ "Арский педагогический колледж им.Г.Тукая" | B27: региональная | C27: ПОО | D27: 49.02.01 | E27: 02 | F27: Лица с ограниченными возможностями здоровья | G27: 0 | H27: 0 | I27: =IFERROR(H27/G27,0) -> 0.00% | J27: 0 | K27: =IFERROR(J27/G27,0) -> 0.00% | L27: 0 | M27: =IFERROR(L27/G27,0) -> 0.00% | N27: 0 | O27: =IFERROR(N27/G27,0) -> 0.00% | P27: 0 | Q27: =IFERROR(P27/G27,0) -> 0.00% | R27: 0.00 | S27: =IFERROR(R27/G27,0) -> 0.00% | T27: 0 | U27: =IFERROR(T27/G27,0) -> 0.00% | V27: 0 | W27: 0 | X27: =IFERROR(W27/G27,0) -> 0.00% | Y27: 0 | Z27: 0 | AA27: =IFERROR(Z27/G27,0) -> 0.00% | AC27: =IFERROR(AB27/G27,0) -> 0.00% | AE27: =IFERROR(AD27/G27,0) -> 0.00% | AG27: =IFERROR(AF27/G27,0) -> 0.00% | AI27: =IFERROR(AH27/G27,0) -> 0.00% | AK27: =IFERROR(AJ27/G27,0) -> 0.00% | AM27: =IFERROR(AL27/G27,0) -> 0.00% | AO27: =IFERROR(AN27/G27,0) -> 0.00% | AR27: =IFERROR(AQ27/G27,0) -> 0.00% | AU27: =IF(G27=H27+J27+N27+T27+W27+L27+P27+R27+Z27,"принято","ВЫПУСК НЕ СОВПАДАЕТ С СУММОЙ ПО ГРАФАМ") -> принято | AV27: =IF(G27=AB27+AD27+AH27+AJ27+AL27+AF27+AN27+AQ27,"принято","ВЫПУСК НЕ СОВПАДАЕТ С СУММОЙ ПО ГРАФАМ") -> принято | AW27: =IF(A27<>0,IF(A27<>0,IF(A27<>0,IF(B27<>0,IF(C27<>0,IF(D27<>0,"принято","ГРАФЫ ЗАПОЛНЕНЫ НЕ ПОЛНОСТЬЮ"),"ГРАФЫ ЗАПОЛНЕНЫ НЕ ПОЛНОСТЬЮ"),"ГРАФЫ ЗАПОЛНЕНЫ НЕ ПОЛНОСТЬЮ"),"ГРАФЫ ЗАПОЛНЕНЫ НЕ ПОЛНОСТЬЮ"),"ГРАФЫ ЗАПОЛНЕНЫ НЕ ПОЛНОСТЬЮ"),"ГРАФЫ ЗАПОЛНЕНЫ НЕ ПОЛНОСТЬЮ") -> принято | AX27: =IF(C27="ПОО","принято",IF(C27="ОО ВО","принято",IF(C27=0,"принято","ВВЕДЕНЫ НЕКОРРЕКТНЫЕ ЗНАЧЕНИЯ"))) -> принято
A28: ГАПОУ "Арский педагогический колледж им.Г.Тукая" | B28: региональная | C28: ПОО | D28: 49.02.01 | E28: 03 | F28: из них (из строки 02): инвалиды и дети-инвалиды | G28: 0 | H28: 0 | I28: 0.00% | J28: 0 | K28: 0.00% | L28: 0 | M28: 0.00% | N28: 0 | O28: 0.00% | P28: 0 | Q28: 0.00% | R28: 0.00 | S28: 0.00% | T28: 0 | U28: =IFERROR(T28/G28,0) -> 0.00% | V28: 0 | W28: 0 | X28: =IFERROR(W28/G28,0) -> 0.00% | Y28: 0 | Z28: 0 | AA28: 0.00% | AC28: =IFERROR(AB28/G28,0) -> 0.00% | AE28: =IFERROR(AD28/G28,0) -> 0.00% | AG28: =IFERROR(AF28/G28,0) -> 0.00% | AI28: =IFERROR(AH28/G28,0) -> 0.00% | AK28: =IFERROR(AJ28/G28,0) -> 0.00% | AM28: =IFERROR(AL28/G28,0) -> 0.00% | AO28: =IFERROR(AN28/G28,0) -> 0.00% | AR28: =IFERROR(AQ28/G28,0) -> 0.00% | AU28: принято | AV28: принято | AW28: =IF(A28<>0,IF(A28<>0,IF(A28<>0,IF(B28<>0,IF(C28<>0,IF(D28<>0,"принято","ГРАФЫ ЗАПОЛНЕНЫ НЕ ПОЛНОСТЬЮ"),"ГРАФЫ ЗАПОЛНЕНЫ НЕ ПОЛНОСТЬЮ"),"ГРАФЫ ЗАПОЛНЕНЫ НЕ ПОЛНОСТЬЮ"),"ГРАФЫ ЗАПОЛНЕНЫ НЕ ПОЛНОСТЬЮ"),"ГРАФЫ ЗАПОЛНЕНЫ НЕ ПОЛНОСТЬЮ"),"ГРАФЫ ЗАПОЛНЕНЫ НЕ ПОЛНОСТЬЮ") -> принято | AX28: =IF(C28="ПОО","принято",IF(C28="ОО ВО","принято",IF(C28=0,"принято","ВВЕДЕНЫ НЕКОРРЕКТНЫЕ ЗНАЧЕНИЯ"))) -> принято
A29: ГАПОУ "Арский педагогический колледж им.Г.Тукая" | B29: региональная | C29: ПОО | D29: 49.02.01 | E29: 04 | F29: Инвалиды и дети-инвалиды (кроме учтенных в строке 03) | G29: 0 | H29: 0 | I29: 0.00% | J29: 0 | K29: 0.00% | L29: 0 | M29: 0.00% | N29: 0 | O29: 0.00% | P29: 0 | Q29: 0.00% | R29: 0.00 | S29: 0.00% | T29: 0 | U29: =IFERROR(T29/G29,0) -> 0.00% | V29: 0 | W29: 0 | X29: =IFERROR(W29/G29,0) -> 0.00% | Y29: 0 | Z29: 0 | AA29: 0.00% | AC29: =IFERROR(AB29/G29,0) -> 0.00% | AE29: =IFERROR(AD29/G29,0) -> 0.00% | AG29: =IFERROR(AF29/G29,0) -> 0.00% | AI29: =IFERROR(AH29/G29,0) -> 0.00% | AK29: =IFERROR(AJ29/G29,0) -> 0.00% | AM29: =IFERROR(AL29/G29,0) -> 0.00% | AO29: =IFERROR(AN29/G29,0) -> 0.00% | AR29: =IFERROR(AQ29/G29,0) -> 0.00% | AU29: принято | AV29: принято | AW29: =IF(A29<>0,IF(A29<>0,IF(A29<>0,IF(B29<>0,IF(C29<>0,IF(D29<>0,"принято","ГРАФЫ ЗАПОЛНЕНЫ НЕ ПОЛНОСТЬЮ"),"ГРАФЫ ЗАПОЛНЕНЫ НЕ ПОЛНОСТЬЮ"),"ГРАФЫ ЗАПОЛНЕНЫ НЕ ПОЛНОСТЬЮ"),"ГРАФЫ ЗАПОЛНЕНЫ НЕ ПОЛНОСТЬЮ"),"ГРАФЫ ЗАПОЛНЕНЫ НЕ ПОЛНОСТЬЮ"),"ГРАФЫ ЗАПОЛНЕНЫ НЕ ПОЛНОСТЬЮ") -> принято | AX29: =IF(C29="ПОО","принято",IF(C29="ОО ВО","принято",IF(C29=0,"принято","ВВЕДЕНЫ НЕКОРРЕКТНЫЕ ЗНАЧЕНИЯ"))) -> принято
A30: ГАПОУ "Арский педагогический колледж им.Г.Тукая" | B30: региональная | C30: ПОО | D30: 49.02.01 | E30: 05 | F30: Имеют договор о целевом обучении | G30: 0 | H30: 0 | I30: 0.00% | J30: 0 | K30: 0.00% | L30: 0 | M30: 0.00% | N30: 0 | O30: 0.00% | P30: 0 | Q30: 0.00% | R30: 0.00 | S30: 0.00% | T30: 0 | U30: =IFERROR(T30/G30,0) -> 0.00% | V30: 0 | W30: 0 | X30: =IFERROR(W30/G30,0) -> 0.00% | Y30: 0 | Z30: 0 | AA30: 0.00% | AC30: =IFERROR(AB30/G30,0) -> 0.00% | AE30: =IFERROR(AD30/G30,0) -> 0.00% | AG30: =IFERROR(AF30/G30,0) -> 0.00% | AI30: =IFERROR(AH30/G30,0) -> 0.00% | AK30: =IFERROR(AJ30/G30,0) -> 0.00% | AM30: =IFERROR(AL30/G30,0) -> 0.00% | AO30: =IFERROR(AN30/G30,0) -> 0.00% | AR30: =IFERROR(AQ30/G30,0) -> 0.00% | AU30: принято | AV30: принято | AW30: =IF(A30<>0,IF(A30<>0,IF(A30<>0,IF(B30<>0,IF(C30<>0,IF(D30<>0,"принято","ГРАФЫ ЗАПОЛНЕНЫ НЕ ПОЛНОСТЬЮ"),"ГРАФЫ ЗАПОЛНЕНЫ НЕ ПОЛНОСТЬЮ"),"ГРАФЫ ЗАПОЛНЕНЫ НЕ ПОЛНОСТЬЮ"),"ГРАФЫ ЗАПОЛНЕНЫ НЕ ПОЛНОСТЬЮ"),"ГРАФЫ ЗАПОЛНЕНЫ НЕ ПОЛНОСТЬЮ"),"ГРАФЫ ЗАПОЛНЕНЫ НЕ ПОЛНОСТЬЮ") -> принято | AX30: =IF(C30="ПОО","принято",IF(C30="ОО ВО","принято",IF(C30=0,"принято","ВВЕДЕНЫ НЕКОРРЕКТНЫЕ ЗНАЧЕНИЯ"))) -> принято
A31: ГАПОУ "Арский педагогический колледж им.Г.Тукая" | B31: региональная | C31: ПОО | D31: 49.02.01 | E31: 06 | F31: из них (из строки 05): Лица с ограниченными возможностями здоровья (имеющие договор о целевом обучении) | G31: 0 | H31: 0 | I31: 0.00% | J31: 0 | K31: 0.00% | L31: 0 | M31: 0.00% | N31: 0 | O31: 0.00% | P31: 0 | Q31: 0.00% | R31: 0.00 | S31: 0.00% | T31: 0 | U31: 0.00% | V31: 0 | W31: 0 | X31: 0.00% | Y31: 0 | Z31: 0 | AA31: 0.00% | AC31: 0.00% | AE31: 0.00% | AG31: 0.00% | AI31: 0.00% | AK31: 0.00% | AM31: 0.00% | AO31: 0.00% | AR31: 0.00% | AU31: принято | AV31: принято | AW31: принято | AX31: принято
A32: ГАПОУ "Арский педагогический колледж им.Г.Тукая" | B32: региональная | C32: ПОО | D32: 49.02.01 | E32: 07 | F32: из строки 06: инвалиды и дети-инвалиды (имеющие договор о целевом обучении) | G32: 0 | H32: 0 | I32: 0.00% | J32: 0 | K32: 0.00% | L32: 0 | M32: 0.00% | N32: 0 | O32: 0.00% | P32: 0 | Q32: 0.00% | R32: 0.00 | S32: 0.00% | T32: 0 | U32: 0.00% | V32: 0 | W32: 0 | X32: 0.00% | Y32: 0 | Z32: 0 | AA32: 0.00% | AC32: 0.00% | AE32: 0.00% | AG32: 0.00% | AI32: 0.00% | AK32: 0.00% | AM32: 0.00% | AO32: 0.00% | AR32: 0.00% | AU32: принято | AV32: принято | AW32: принято | AX32: принято
A33: ГАПОУ "Арский педагогический колледж им.Г.Тукая" | B33: региональная | C33: ПОО | D33: 49.02.01 | E33: 08 | F33: из строки 05 инвалиды и дети-инвалиды (кроме учтенных в строке 07) (имеющие договор о целевом обучении) | G33: 0 | H33: 0 | I33: 0.00% | J33: 0 | K33: 0.00% | L33: 0 | M33: 0.00% | N33: 0 | O33: 0.00% | P33: 0 | Q33: 0.00% | R33: 0.00 | S33: 0.00% | T33: 0 | U33: =IFERROR(T33/G33,0) -> 0.00% | V33: 0 | W33: 0 | X33: =IFERROR(W33/G33,0) -> 0.00% | Y33: 0 | Z33: 0 | AA33: 0.00% | AC33: =IFERROR(AB33/G33,0) -> 0.00% | AE33: =IFERROR(AD33/G33,0) -> 0.00% | AG33: =IFERROR(AF33/G33,0) -> 0.00% | AI33: =IFERROR(AH33/G33,0) -> 0.00% | AK33: =IFERROR(AJ33/G33,0) -> 0.00% | AM33: =IFERROR(AL33/G33,0) -> 0.00% | AO33: =IFERROR(AN33/G33,0) -> 0.00% | AR33: =IFERROR(AQ33/G33,0) -> 0.00% | AU33: принято | AV33: принято | AW33: принято | AX33: принято
A34: ГАПОУ "Арский педагогический колледж им.Г.Тукая" | B34: региональная | C34: ПОО | D34: 53.02.01 | E34: 01 | F34: Всего | G34: 18 | H34: 13 | I34: =IFERROR(H34/G34,0) -> 72.22% | J34: 0 | K34: =IFERROR(J34/G34,0) -> 0.00% | L34: 1 | M34: =IFERROR(L34/G34,0) -> 5.56% | N34: 1 | O34: =IFERROR(N34/G34,0) -> 5.56% | P34: 1 | Q34: =IFERROR(P34/G34,0) -> 5.56% | R34: 0.00 | S34: =IFERROR(R34/G34,0) -> 0.00% | T34: 0 | U34: =IFERROR(T34/G34,0) -> 0.00% | V34: 0 | W34: 0 | X34: =IFERROR(W34/G34,0) -> 0.00% | Y34: 0 | Z34: 2 | AA34: =IFERROR(Z34/G34,0) -> 11.11% | AC34: =IFERROR(AB34/G34,0) -> 0.00% | AE34: =IFERROR(AD34/G34,0) -> 0.00% | AG34: =IFERROR(AF34/G34,0) -> 0.00% | AI34: =IFERROR(AH34/G34,0) -> 0.00% | AK34: =IFERROR(AJ34/G34,0) -> 0.00% | AM34: =IFERROR(AL34/G34,0) -> 0.00% | AO34: =IFERROR(AN34/G34,0) -> 0.00% | AR34: =IFERROR(AQ34/G34,0) -> 0.00% | AU34: =IF(G34=H34+J34+N34+T34+W34+L34+P34+R34+Z34,"принято","ВЫПУСК НЕ СОВПАДАЕТ С СУММОЙ ПО ГРАФАМ") -> принято | AV34: =IF(G34=AB34+AD34+AH34+AJ34+AL34+AF34+AN34+AQ34,"принято","ВЫПУСК НЕ СОВПАДАЕТ С СУММОЙ ПО ГРАФАМ") -> ВЫПУСК НЕ СОВПАДАЕТ С СУММОЙ ПО ГРАФАМ | AW34: =IF(A34<>0,IF(A34<>0,IF(A34<>0,IF(B34<>0,IF(C34<>0,IF(D34<>0,"принято","ГРАФЫ ЗАПОЛНЕНЫ НЕ ПОЛНОСТЬЮ"),"ГРАФЫ ЗАПОЛНЕНЫ НЕ ПОЛНОСТЬЮ"),"ГРАФЫ ЗАПОЛНЕНЫ НЕ ПОЛНОСТЬЮ"),"ГРАФЫ ЗАПОЛНЕНЫ НЕ ПОЛНОСТЬЮ"),"ГРАФЫ ЗАПОЛНЕНЫ НЕ ПОЛНОСТЬЮ"),"ГРАФЫ ЗАПОЛНЕНЫ НЕ ПОЛНОСТЬЮ") -> принято | AX34: =IF(C34="ПОО","принято",IF(C34="ОО ВО","принято",IF(C34=0,"принято","ВВЕДЕНЫ НЕКОРРЕКТНЫЕ ЗНАЧЕНИЯ"))) -> принято
A35: ГАПОУ "Арский педагогический колледж им.Г.Тукая" | B35: региональная | C35: ПОО | D35: 53.02.01 | E35: 02 | F35: Лица с ограниченными возможностями здоровья | G35: 0 | H35: 0 | I35: =IFERROR(H35/G35,0) -> 0.00% | J35: 0 | K35: =IFERROR(J35/G35,0) -> 0.00% | L35: 0 | M35: =IFERROR(L35/G35,0) -> 0.00% | N35: 0 | O35: =IFERROR(N35/G35,0) -> 0.00% | P35: 0 | Q35: =IFERROR(P35/G35,0) -> 0.00% | R35: 0.00 | S35: =IFERROR(R35/G35,0) -> 0.00% | T35: 0 | U35: =IFERROR(T35/G35,0) -> 0.00% | V35: 0 | W35: 0 | X35: =IFERROR(W35/G35,0) -> 0.00% | Y35: 0 | Z35: 0 | AA35: =IFERROR(Z35/G35,0) -> 0.00% | AC35: =IFERROR(AB35/G35,0) -> 0.00% | AE35: =IFERROR(AD35/G35,0) -> 0.00% | AG35: =IFERROR(AF35/G35,0) -> 0.00% | AI35: =IFERROR(AH35/G35,0) -> 0.00% | AK35: =IFERROR(AJ35/G35,0) -> 0.00% | AM35: =IFERROR(AL35/G35,0) -> 0.00% | AO35: =IFERROR(AN35/G35,0) -> 0.00% | AR35: =IFERROR(AQ35/G35,0) -> 0.00% | AU35: =IF(G35=H35+J35+N35+T35+W35+L35+P35+R35+Z35,"принято","ВЫПУСК НЕ СОВПАДАЕТ С СУММОЙ ПО ГРАФАМ") -> принято | AV35: =IF(G35=AB35+AD35+AH35+AJ35+AL35+AF35+AN35+AQ35,"принято","ВЫПУСК НЕ СОВПАДАЕТ С СУММОЙ ПО ГРАФАМ") -> принято | AW35: =IF(A35<>0,IF(A35<>0,IF(A35<>0,IF(B35<>0,IF(C35<>0,IF(D35<>0,"принято","ГРАФЫ ЗАПОЛНЕНЫ НЕ ПОЛНОСТЬЮ"),"ГРАФЫ ЗАПОЛНЕНЫ НЕ ПОЛНОСТЬЮ"),"ГРАФЫ ЗАПОЛНЕНЫ НЕ ПОЛНОСТЬЮ"),"ГРАФЫ ЗАПОЛНЕНЫ НЕ ПОЛНОСТЬЮ"),"ГРАФЫ ЗАПОЛНЕНЫ НЕ ПОЛНОСТЬЮ"),"ГРАФЫ ЗАПОЛНЕНЫ НЕ ПОЛНОСТЬЮ") -> принято | AX35: =IF(C35="ПОО","принято",IF(C35="ОО ВО","принято",IF(C35=0,"принято","ВВЕДЕНЫ НЕКОРРЕКТНЫЕ ЗНАЧЕНИЯ"))) -> принято
A36: ГАПОУ "Арский педагогический колледж им.Г.Тукая" | B36: региональная | C36: ПОО | D36: 53.02.01 | E36: 03 | F36: из них (из строки 02): инвалиды и дети-инвалиды | G36: 0 | H36: 0 | I36: 0.00% | J36: 0 | K36: 0.00% | L36: 0 | M36: 0.00% | N36: 0 | O36: 0.00% | P36: 0 | Q36: 0.00% | R36: 0.00 | S36: 0.00% | T36: 0 | U36: =IFERROR(T36/G36,0) -> 0.00% | V36: 0 | W36: 0 | X36: =IFERROR(W36/G36,0) -> 0.00% | Y36: 0 | Z36: 0 | AA36: 0.00% | AC36: =IFERROR(AB36/G36,0) -> 0.00% | AE36: =IFERROR(AD36/G36,0) -> 0.00% | AG36: =IFERROR(AF36/G36,0) -> 0.00% | AI36: =IFERROR(AH36/G36,0) -> 0.00% | AK36: =IFERROR(AJ36/G36,0) -> 0.00% | AM36: =IFERROR(AL36/G36,0) -> 0.00% | AO36: =IFERROR(AN36/G36,0) -> 0.00% | AR36: =IFERROR(AQ36/G36,0) -> 0.00% | AU36: принято | AV36: принято | AW36: =IF(A36<>0,IF(A36<>0,IF(A36<>0,IF(B36<>0,IF(C36<>0,IF(D36<>0,"принято","ГРАФЫ ЗАПОЛНЕНЫ НЕ ПОЛНОСТЬЮ"),"ГРАФЫ ЗАПОЛНЕНЫ НЕ ПОЛНОСТЬЮ"),"ГРАФЫ ЗАПОЛНЕНЫ НЕ ПОЛНОСТЬЮ"),"ГРАФЫ ЗАПОЛНЕНЫ НЕ ПОЛНОСТЬЮ"),"ГРАФЫ ЗАПОЛНЕНЫ НЕ ПОЛНОСТЬЮ"),"ГРАФЫ ЗАПОЛНЕНЫ НЕ ПОЛНОСТЬЮ") -> принято | AX36: =IF(C36="ПОО","принято",IF(C36="ОО ВО","принято",IF(C36=0,"принято","ВВЕДЕНЫ НЕКОРРЕКТНЫЕ ЗНАЧЕНИЯ"))) -> принято
A37: ГАПОУ "Арский педагогический колледж им.Г.Тукая" | B37: региональная | C37: ПОО | D37: 53.02.01 | E37: 04 | F37: Инвалиды и дети-инвалиды (кроме учтенных в строке 03) | G37: 0 | H37: 0 | I37: 0.00% | J37: 0 | K37: 0.00% | L37: 0 | M37: 0.00% | N37: 0 | O37: 0.00% | P37: 0 | Q37: 0.00% | R37: 0.00 | S37: 0.00% | T37: 0 | U37: =IFERROR(T37/G37,0) -> 0.00% | V37: 0 | W37: 0 | X37: =IFERROR(W37/G37,0) -> 0.00% | Y37: 0 | Z37: 0 | AA37: 0.00% | AC37: =IFERROR(AB37/G37,0) -> 0.00% | AE37: =IFERROR(AD37/G37,0) -> 0.00% | AG37: =IFERROR(AF37/G37,0) -> 0.00% | AI37: =IFERROR(AH37/G37,0) -> 0.00% | AK37: =IFERROR(AJ37/G37,0) -> 0.00% | AM37: =IFERROR(AL37/G37,0) -> 0.00% | AO37: =IFERROR(AN37/G37,0) -> 0.00% | AR37: =IFERROR(AQ37/G37,0) -> 0.00% | AU37: принято | AV37: принято | AW37: =IF(A37<>0,IF(A37<>0,IF(A37<>0,IF(B37<>0,IF(C37<>0,IF(D37<>0,"принято","ГРАФЫ ЗАПОЛНЕНЫ НЕ ПОЛНОСТЬЮ"),"ГРАФЫ ЗАПОЛНЕНЫ НЕ ПОЛНОСТЬЮ"),"ГРАФЫ ЗАПОЛНЕНЫ НЕ ПОЛНОСТЬЮ"),"ГРАФЫ ЗАПОЛНЕНЫ НЕ ПОЛНОСТЬЮ"),"ГРАФЫ ЗАПОЛНЕНЫ НЕ ПОЛНОСТЬЮ"),"ГРАФЫ ЗАПОЛНЕНЫ НЕ ПОЛНОСТЬЮ") -> принято | AX37: =IF(C37="ПОО","принято",IF(C37="ОО ВО","принято",IF(C37=0,"принято","ВВЕДЕНЫ НЕКОРРЕКТНЫЕ ЗНАЧЕНИЯ"))) -> принято
A38: ГАПОУ "Арский педагогический колледж им.Г.Тукая" | B38: региональная | C38: ПОО | D38: 53.02.01 | E38: 05 | F38: Имеют договор о целевом обучении | G38: 0 | H38: 0 | I38: 0.00% | J38: 0 | K38: 0.00% | L38: 0 | M38: 0.00% | N38: 0 | O38: 0.00% | P38: 0 | Q38: 0.00% | R38: 0.00 | S38: 0.00% | T38: 0 | U38: =IFERROR(T38/G38,0) -> 0.00% | V38: 0 | W38: 0 | X38: =IFERROR(W38/G38,0) -> 0.00% | Y38: 0 | Z38: 0 | AA38: 0.00% | AC38: =IFERROR(AB38/G38,0) -> 0.00% | AE38: =IFERROR(AD38/G38,0) -> 0.00% | AG38: =IFERROR(AF38/G38,0) -> 0.00% | AI38: =IFERROR(AH38/G38,0) -> 0.00% | AK38: =IFERROR(AJ38/G38,0) -> 0.00% | AM38: =IFERROR(AL38/G38,0) -> 0.00% | AO38: =IFERROR(AN38/G38,0) -> 0.00% | AR38: =IFERROR(AQ38/G38,0) -> 0.00% | AU38: принято | AV38: принято | AW38: =IF(A38<>0,IF(A38<>0,IF(A38<>0,IF(B38<>0,IF(C38<>0,IF(D38<>0,"принято","ГРАФЫ ЗАПОЛНЕНЫ НЕ ПОЛНОСТЬЮ"),"ГРАФЫ ЗАПОЛНЕНЫ НЕ ПОЛНОСТЬЮ"),"ГРАФЫ ЗАПОЛНЕНЫ НЕ ПОЛНОСТЬЮ"),"ГРАФЫ ЗАПОЛНЕНЫ НЕ ПОЛНОСТЬЮ"),"ГРАФЫ ЗАПОЛНЕНЫ НЕ ПОЛНОСТЬЮ"),"ГРАФЫ ЗАПОЛНЕНЫ НЕ ПОЛНОСТЬЮ") -> принято | AX38: =IF(C38="ПОО","принято",IF(C38="ОО ВО","принято",IF(C38=0,"принято","ВВЕДЕНЫ НЕКОРРЕКТНЫЕ ЗНАЧЕНИЯ"))) -> принято
A39: ГАПОУ "Арский педагогический колледж им.Г.Тукая" | B39: региональная | C39: ПОО | D39: 53.02.01 | E39: 06 | F39: из них (из строки 05): Лица с ограниченными возможностями здоровья (имеющие договор о целевом обучении) | G39: 0 | H39: 0 | I39: 0.00% | J39: 0 | K39: 0.00% | L39: 0 | M39: 0.00% | N39: 0 | O39: 0.00% | P39: 0 | Q39: 0.00% | R39: 0.00 | S39: 0.00% | T39: 0 | U39: 0.00% | V39: 0 | W39: 0 | X39: 0.00% | Y39: 0 | Z39: 0 | AA39: 0.00% | AC39: 0.00% | AE39: 0.00% | AG39: 0.00% | AI39: 0.00% | AK39: 0.00% | AM39: 0.00% | AO39: 0.00% | AR39: 0.00% | AU39: принято | AV39: принято | AW39: принято | AX39: принято
A40: ГАПОУ "Арский педагогический колледж им.Г.Тукая" | B40: региональная | C40: ПОО | D40: 53.02.01 | E40: 07 | F40: из строки 06: инвалиды и дети-инвалиды (имеющие договор о целевом обучении) | G40: 0 | H40: 0 | I40: 0.00% | J40: 0 | K40: 0.00% | L40: 0 | M40: 0.00% | N40: 0 | O40: 0.00% | P40: 0 | Q40: 0.00% | R40: 0.00 | S40: 0.00% | T40: 0 | U40: 0.00% | V40: 0 | W40: 0 | X40: 0.00% | Y40: 0 | Z40: 0 | AA40: 0.00% | AC40: 0.00% | AE40: 0.00% | AG40: 0.00% | AI40: 0.00% | AK40: 0.00% | AM40: 0.00% | AO40: 0.00% | AR40: 0.00% | AU40: принято | AV40: принято | AW40: принято | AX40: принято
A41: ГАПОУ "Арский педагогический колледж им.Г.Тукая" | B41: региональная | C41: ПОО | D41: 53.02.01 | E41: 08 | F41: из строки 05 инвалиды и дети-инвалиды (кроме учтенных в строке 07) (имеющие договор о целевом обучении) | G41: 0 | H41: 0 | I41: 0.00% | J41: 0 | K41: 0.00% | L41: 0 | M41: 0.00% | N41: 0 | O41: 0.00% | P41: 0 | Q41: 0.00% | R41: 0.00 | S41: 0.00% | T41: 0 | U41: =IFERROR(T41/G41,0) -> 0.00% | V41: 0 | W41: 0 | X41: =IFERROR(W41/G41,0) -> 0.00% | Y41: 0 | Z41: 0 | AA41: 0.00% | AC41: =IFERROR(AB41/G41,0) -> 0.00% | AE41: =IFERROR(AD41/G41,0) -> 0.00% | AG41: =IFERROR(AF41/G41,0) -> 0.00% | AI41: =IFERROR(AH41/G41,0) -> 0.00% | AK41: =IFERROR(AJ41/G41,0) -> 0.00% | AM41: =IFERROR(AL41/G41,0) -> 0.00% | AO41: =IFERROR(AN41/G41,0) -> 0.00% | AR41: =IFERROR(AQ41/G41,0) -> 0.00% | AU41: принято | AV41: принято | AW41: принято | AX41: принято
A42: ГАПОУ "Арский педагогический колледж им.Г.Тукая" | B42: региональная | C42: ПОО | D42: 09.02.03 | E42: 01 | F42: Всего | G42: 20 | H42: 5 | I42: =IFERROR(H42/G42,0) -> 25.00% | J42: 0 | K42: =IFERROR(J42/G42,0) -> 0.00% | L42: 1 | M42: =IFERROR(L42/G42,0) -> 5.00% | N42: 5 | O42: =IFERROR(N42/G42,0) -> 25.00% | P42: 0 | Q42: =IFERROR(P42/G42,0) -> 0.00% | R42: 0.00 | S42: =IFERROR(R42/G42,0) -> 0.00% | T42: 0 | U42: =IFERROR(T42/G42,0) -> 0.00% | V42: 0 | W42: 0 | X42: =IFERROR(W42/G42,0) -> 0.00% | Y42: 0 | Z42: 9 | AA42: =IFERROR(Z42/G42,0) -> 45.00% | AC42: =IFERROR(AB42/G42,0) -> 0.00% | AE42: =IFERROR(AD42/G42,0) -> 0.00% | AG42: =IFERROR(AF42/G42,0) -> 0.00% | AI42: =IFERROR(AH42/G42,0) -> 0.00% | AK42: =IFERROR(AJ42/G42,0) -> 0.00% | AM42: =IFERROR(AL42/G42,0) -> 0.00% | AO42: =IFERROR(AN42/G42,0) -> 0.00% | AR42: =IFERROR(AQ42/G42,0) -> 0.00% | AU42: =IF(G42=H42+J42+N42+T42+W42+L42+P42+R42+Z42,"принято","ВЫПУСК НЕ СОВПАДАЕТ С СУММОЙ ПО ГРАФАМ") -> принято | AV42: =IF(G42=AB42+AD42+AH42+AJ42+AL42+AF42+AN42+AQ42,"принято","ВЫПУСК НЕ СОВПАДАЕТ С СУММОЙ ПО ГРАФАМ") -> ВЫПУСК НЕ СОВПАДАЕТ С СУММОЙ ПО ГРАФАМ | AW42: =IF(A42<>0,IF(A42<>0,IF(A42<>0,IF(B42<>0,IF(C42<>0,IF(D42<>0,"принято","ГРАФЫ ЗАПОЛНЕНЫ НЕ ПОЛНОСТЬЮ"),"ГРАФЫ ЗАПОЛНЕНЫ НЕ ПОЛНОСТЬЮ"),"ГРАФЫ ЗАПОЛНЕНЫ НЕ ПОЛНОСТЬЮ"),"ГРАФЫ ЗАПОЛНЕНЫ НЕ ПОЛНОСТЬЮ"),"ГРАФЫ ЗАПОЛНЕНЫ НЕ ПОЛНОСТЬЮ"),"ГРАФЫ ЗАПОЛНЕНЫ НЕ ПОЛНОСТЬЮ") -> принято | AX42: =IF(C42="ПОО","принято",IF(C42="ОО ВО","принято",IF(C42=0,"принято","ВВЕДЕНЫ НЕКОРРЕКТНЫЕ ЗНАЧЕНИЯ"))) -> принято
A43: ГАПОУ "Арский педагогический колледж им.Г.Тукая" | B43: региональная | C43: ПОО | D43: 09.02.03 | E43: 02 | F43: Лица с ограниченными возможностями здоровья | G43: 0 | H43: 0 | I43: =IFERROR(H43/G43,0) -> 0.00% | J43: 0 | K43: =IFERROR(J43/G43,0) -> 0.00% | L43: 0 | M43: =IFERROR(L43/G43,0) -> 0.00% | N43: 0 | O43: =IFERROR(N43/G43,0) -> 0.00% | P43: 0 | Q43: =IFERROR(P43/G43,0) -> 0.00% | R43: 0.00 | S43: =IFERROR(R43/G43,0) -> 0.00% | T43: 0 | U43: =IFERROR(T43/G43,0) -> 0.00% | V43: 0 | W43: 0 | X43: =IFERROR(W43/G43,0) -> 0.00% | Y43: 0 | Z43: 0 | AA43: =IFERROR(Z43/G43,0) -> 0.00% | AC43: =IFERROR(AB43/G43,0) -> 0.00% | AE43: =IFERROR(AD43/G43,0) -> 0.00% | AG43: =IFERROR(AF43/G43,0) -> 0.00% | AI43: =IFERROR(AH43/G43,0) -> 0.00% | AK43: =IFERROR(AJ43/G43,0) -> 0.00% | AM43: =IFERROR(AL43/G43,0) -> 0.00% | AO43: =IFERROR(AN43/G43,0) -> 0.00% | AR43: =IFERROR(AQ43/G43,0) -> 0.00% | AU43: =IF(G43=H43+J43+N43+T43+W43+L43+P43+R43+Z43,"принято","ВЫПУСК НЕ СОВПАДАЕТ С СУММОЙ ПО ГРАФАМ") -> принято | AV43: =IF(G43=AB43+AD43+AH43+AJ43+AL43+AF43+AN43+AQ43,"принято","ВЫПУСК НЕ СОВПАДАЕТ С СУММОЙ ПО ГРАФАМ") -> принято | AW43: =IF(A43<>0,IF(A43<>0,IF(A43<>0,IF(B43<>0,IF(C43<>0,IF(D43<>0,"принято","ГРАФЫ ЗАПОЛНЕНЫ НЕ ПОЛНОСТЬЮ"),"ГРАФЫ ЗАПОЛНЕНЫ НЕ ПОЛНОСТЬЮ"),"ГРАФЫ ЗАПОЛНЕНЫ НЕ ПОЛНОСТЬЮ"),"ГРАФЫ ЗАПОЛНЕНЫ НЕ ПОЛНОСТЬЮ"),"ГРАФЫ ЗАПОЛНЕНЫ НЕ ПОЛНОСТЬЮ"),"ГРАФЫ ЗАПОЛНЕНЫ НЕ ПОЛНОСТЬЮ") -> принято | AX43: =IF(C43="ПОО","принято",IF(C43="ОО ВО","принято",IF(C43=0,"принято","ВВЕДЕНЫ НЕКОРРЕКТНЫЕ ЗНАЧЕНИЯ"))) -> принято
A44: ГАПОУ "Арский педагогический колледж им.Г.Тукая" | B44: региональная | C44: ПОО | D44: 09.02.03 | E44: 03 | F44: из них (из строки 02): инвалиды и дети-инвалиды | G44: 0 | H44: 0 | I44: 0.00% | J44: 0 | K44: 0.00% | L44: 0 | M44: 0.00% | N44: 0 | O44: 0.00% | P44: 0 | Q44: 0.00% | R44: 0.00 | S44: 0.00% | T44: 0 | U44: =IFERROR(T44/G44,0) -> 0.00% | V44: 0 | W44: 0 | X44: =IFERROR(W44/G44,0) -> 0.00% | Y44: 0 | Z44: 0 | AA44: 0.00% | AC44: =IFERROR(AB44/G44,0) -> 0.00% | AE44: =IFERROR(AD44/G44,0) -> 0.00% | AG44: =IFERROR(AF44/G44,0) -> 0.00% | AI44: =IFERROR(AH44/G44,0) -> 0.00% | AK44: =IFERROR(AJ44/G44,0) -> 0.00% | AM44: =IFERROR(AL44/G44,0) -> 0.00% | AO44: =IFERROR(AN44/G44,0) -> 0.00% | AR44: =IFERROR(AQ44/G44,0) -> 0.00% | AU44: принято | AV44: принято | AW44: =IF(A44<>0,IF(A44<>0,IF(A44<>0,IF(B44<>0,IF(C44<>0,IF(D44<>0,"принято","ГРАФЫ ЗАПОЛНЕНЫ НЕ ПОЛНОСТЬЮ"),"ГРАФЫ ЗАПОЛНЕНЫ НЕ ПОЛНОСТЬЮ"),"ГРАФЫ ЗАПОЛНЕНЫ НЕ ПОЛНОСТЬЮ"),"ГРАФЫ ЗАПОЛНЕНЫ НЕ ПОЛНОСТЬЮ"),"ГРАФЫ ЗАПОЛНЕНЫ НЕ ПОЛНОСТЬЮ"),"ГРАФЫ ЗАПОЛНЕНЫ НЕ ПОЛНОСТЬЮ") -> принято | AX44: =IF(C44="ПОО","принято",IF(C44="ОО ВО","принято",IF(C44=0,"принято","ВВЕДЕНЫ НЕКОРРЕКТНЫЕ ЗНАЧЕНИЯ"))) -> принято
A45: ГАПОУ "Арский педагогический колледж им.Г.Тукая" | B45: региональная | C45: ПОО | D45: 09.02.03 | E45: 04 | F45: Инвалиды и дети-инвалиды (кроме учтенных в строке 03) | G45: 0 | H45: 0 | I45: 0.00% | J45: 0 | K45: 0.00% | L45: 0 | M45: 0.00% | N45: 0 | O45: 0.00% | P45: 0 | Q45: 0.00% | R45: 0.00 | S45: 0.00% | T45: 0 | U45: =IFERROR(T45/G45,0) -> 0.00% | V45: 0 | W45: 0 | X45: =IFERROR(W45/G45,0) -> 0.00% | Y45: 0 | Z45: 0 | AA45: 0.00% | AC45: =IFERROR(AB45/G45,0) -> 0.00% | AE45: =IFERROR(AD45/G45,0) -> 0.00% | AG45: =IFERROR(AF45/G45,0) -> 0.00% | AI45: =IFERROR(AH45/G45,0) -> 0.00% | AK45: =IFERROR(AJ45/G45,0) -> 0.00% | AM45: =IFERROR(AL45/G45,0) -> 0.00% | AO45: =IFERROR(AN45/G45,0) -> 0.00% | AR45: =IFERROR(AQ45/G45,0) -> 0.00% | AU45: принято | AV45: принято | AW45: =IF(A45<>0,IF(A45<>0,IF(A45<>0,IF(B45<>0,IF(C45<>0,IF(D45<>0,"принято","ГРАФЫ ЗАПОЛНЕНЫ НЕ ПОЛНОСТЬЮ"),"ГРАФЫ ЗАПОЛНЕНЫ НЕ ПОЛНОСТЬЮ"),"ГРАФЫ ЗАПОЛНЕНЫ НЕ ПОЛНОСТЬЮ"),"ГРАФЫ ЗАПОЛНЕНЫ НЕ ПОЛНОСТЬЮ"),"ГРАФЫ ЗАПОЛНЕНЫ НЕ ПОЛНОСТЬЮ"),"ГРАФЫ ЗАПОЛНЕНЫ НЕ ПОЛНОСТЬЮ") -> принято | AX45: =IF(C45="ПОО","принято",IF(C45="ОО ВО","принято",IF(C45=0,"принято","ВВЕДЕНЫ НЕКОРРЕКТНЫЕ ЗНАЧЕНИЯ"))) -> принято
A46: ГАПОУ "Арский педагогический колледж им.Г.Тукая" | B46: региональная | C46: ПОО | D46: 09.02.03 | E46: 05 | F46: Имеют договор о целевом обучении | G46: 0 | H46: 0 | I46: 0.00% | J46: 0 | K46: 0.00% | L46: 0 | M46: 0.00% | N46: 0 | O46: 0.00% | P46: 0 | Q46: 0.00% | R46: 0.00 | S46: 0.00% | T46: 0 | U46: =IFERROR(T46/G46,0) -> 0.00% | V46: 0 | W46: 0 | X46: =IFERROR(W46/G46,0) -> 0.00% | Y46: 0 | Z46: 0 | AA46: 0.00% | AC46: =IFERROR(AB46/G46,0) -> 0.00% | AE46: =IFERROR(AD46/G46,0) -> 0.00% | AG46: =IFERROR(AF46/G46,0) -> 0.00% | AI46: =IFERROR(AH46/G46,0) -> 0.00% | AK46: =IFERROR(AJ46/G46,0) -> 0.00% | AM46: =IFERROR(AL46/G46,0) -> 0.00% | AO46: =IFERROR(AN46/G46,0) -> 0.00% | AR46: =IFERROR(AQ46/G46,0) -> 0.00% | AU46: принято | AV46: принято | AW46: =IF(A46<>0,IF(A46<>0,IF(A46<>0,IF(B46<>0,IF(C46<>0,IF(D46<>0,"принято","ГРАФЫ ЗАПОЛНЕНЫ НЕ ПОЛНОСТЬЮ"),"ГРАФЫ ЗАПОЛНЕНЫ НЕ ПОЛНОСТЬЮ"),"ГРАФЫ ЗАПОЛНЕНЫ НЕ ПОЛНОСТЬЮ"),"ГРАФЫ ЗАПОЛНЕНЫ НЕ ПОЛНОСТЬЮ"),"ГРАФЫ ЗАПОЛНЕНЫ НЕ ПОЛНОСТЬЮ"),"ГРАФЫ ЗАПОЛНЕНЫ НЕ ПОЛНОСТЬЮ") -> принято | AX46: =IF(C46="ПОО","принято",IF(C46="ОО ВО","принято",IF(C46=0,"принято","ВВЕДЕНЫ НЕКОРРЕКТНЫЕ ЗНАЧЕНИЯ"))) -> принято
A47: ГАПОУ "Арский педагогический колледж им.Г.Тукая" | B47: региональная | C47: ПОО | D47: 09.02.03 | E47: 06 | F47: из них (из строки 05): Лица с ограниченными возможностями здоровья (имеющие договор о целевом обучении) | G47: 0 | H47: 0 | I47: 0.00% | J47: 0 | K47: 0.00% | L47: 0 | M47: 0.00% | N47: 0 | O47: 0.00% | P47: 0 | Q47: 0.00% | R47: 0.00 | S47: 0.00% | T47: 0 | U47: 0.00% | V47: 0 | W47: 0 | X47: 0.00% | Y47: 0 | Z47: 0 | AA47: 0.00% | AC47: 0.00% | AE47: 0.00% | AG47: 0.00% | AI47: 0.00% | AK47: 0.00% | AM47: 0.00% | AO47: 0.00% | AR47: 0.00% | AU47: принято | AV47: принято | AW47: принято | AX47: принято
A48: ГАПОУ "Арский педагогический колледж им.Г.Тукая" | B48: региональная | C48: ПОО | D48: 09.02.03 | E48: 07 | F48: из строки 06: инвалиды и дети-инвалиды (имеющие договор о целевом обучении) | G48: 0 | H48: 0 | I48: 0.00% | J48: 0 | K48: 0.00% | L48: 0 | M48: 0.00% | N48: 0 | O48: 0.00% | P48: 0 | Q48: 0.00% | R48: 0.00 | S48: 0.00% | T48: 0 | U48: 0.00% | V48: 0 | W48: 0 | X48: 0.00% | Y48: 0 | Z48: 0 | AA48: 0.00% | AC48: 0.00% | AE48: 0.00% | AG48: 0.00% | AI48: 0.00% | AK48: 0.00% | AM48: 0.00% | AO48: 0.00% | AR48: 0.00% | AU48: принято | AV48: принято | AW48: принято | AX48: принято
A49: ГАПОУ "Арский педагогический колледж им.Г.Тукая" | B49: региональная | C49: ПОО | D49: 09.02.03 | E49: 08 | F49: из строки 05 инвалиды и дети-инвалиды (кроме учтенных в строке 07) (имеющие договор о целевом обучении) | G49: 0 | H49: 0 | I49: 0.00% | J49: 0 | K49: 0.00% | L49: 0 | M49: 0.00% | N49: 0 | O49: 0.00% | P49: 0 | Q49: 0.00% | R49: 0.00 | S49: 0.00% | T49: 0 | U49: =IFERROR(T49/G49,0) -> 0.00% | V49: 0 | W49: 0 | X49: =IFERROR(W49/G49,0) -> 0.00% | Y49: 0 | Z49: 0 | AA49: 0.00% | AC49: =IFERROR(AB49/G49,0) -> 0.00% | AE49: =IFERROR(AD49/G49,0) -> 0.00% | AG49: =IFERROR(AF49/G49,0) -> 0.00% | AI49: =IFERROR(AH49/G49,0) -> 0.00% | AK49: =IFERROR(AJ49/G49,0) -> 0.00% | AM49: =IFERROR(AL49/G49,0) -> 0.00% | AO49: =IFERROR(AN49/G49,0) -> 0.00% | AR49: =IFERROR(AQ49/G49,0) -> 0.00% | AU49: принято | AV49: принято | AW49: принято | AX49: принято

Sheet Коды и наименования программ
A1: Коды и наименования образовательных программ | C1: Ведомственная принадлежность | E1: Тип | G1: Регионы | K1: ФО
A2: 05.01.01 | C2: федеральная | E2: ПОО | G2: Алтайский край | K2: ДФО
A3: 05.02.01 | C3: региональная | E3: ОО ВО | G3: Амурская область | K3: ПФО
A4: 05.02.02 | C4: муниципальная | G4: Архангельская область | K4: СЗФО
A5: 05.02.03 | C5: частная | G5: Астраханская область | K5: СКФО
A6: 07.02.01 | G6: Белгородская область | K6: СФО
A7: 08.01.01 | G7: Брянская область | K7: УФО
A8: 08.01.02 | G8: Владимирская область | K8: ЦФО
A9: 08.01.03 | G9: Волгоградская область | K9: ЮФО
A10: 08.01.04 | G10: Вологодская область
A11: 08.01.05 | G11: Воронежская область
A12: 08.01.06 | G12: город Москва
A13: 08.01.07 | G13: город Санкт-Петербург
A14: 08.01.08 | G14: город Севастополь
A15: 08.01.09 | G15: Еврейская автономная область
A16: 08.01.10 | G16: Забайкальский край
A17: 08.01.11 | G17: Ивановская область
A18: 08.01.12 | G18: Иркутская область
A19: 08.01.13 | G19: Кабардино-Балкарская республика
A20: 08.01.14 | G20: Калининградская область
A21: 08.01.15 | G21: Калужская область
A22: 08.01.16 | G22: Камчатский край
A23: 08.01.17 | G23: Карачаево-Черкесская Республика
A24: 08.01.18 | G24: Кемеровская область - Кузбасс
A25: 08.01.19 | G25: Кировская область
A26: 08.01.20 | G26: Костромская область
A27: 08.01.21 | G27: Краснодарский край
A28: 08.01.22 | G28: Красноярский край
A29: 08.01.23 | G29: Курганская область
A30: 08.01.24 | G30: Курская область
A31: 08.01.25 | G31: Ленинградская область
A32: 08.01.26 | G32: Липецкая область
A33: 08.02.01 | G33: Магаданская область
A34: 08.02.02 | G34: Московская область
A35: 08.02.03 | G35: Мурманская область
A36: 08.02.04 | G36: Ненецкий автономный округ
A37: 08.02.05 | G37: Нижегородская область
A38: 08.02.06 | G38: Новгородская область
A39: 08.02.07 | G39: Новосибирская область
A40: 08.02.08 | G40: Омская область
A41: 08.02.09 | G41: Оренбургская область
A42: 08.02.10 | G42: Орловская область
A43: 08.02.11 | G43: Пензенская область
A44: 09.01.01 | G44: Пермский край
A45: 09.01.02 | G45: Приморский Край
A46: 09.01.03 | G46: Псковская область
A47: 09.02.01 | G47: Республика Адыгея
A48: 09.02.02 | G48: Республика Алтай
A49: 09.02.03 | G49: Республика Башкортостан
A50: 09.02.04 | G50: Республика Бурятия
A51: 09.02.05 | G51: Республика Дагестан
A52: 09.02.06 | G52: Республика Ингушетия
A53: 09.02.07 | G53: Республика Калмыкия
A54: 10.02.01 | G54: Республика Карелия
A55: 10.02.02 | G55: Республика Коми
A56: 10.02.03 | G56: Республика Крым
A57: 10.02.04 | G57: Республика Марий Эл
A58: 10.02.05 | G58: Республика Мордовия
A59: 11.01.01 | G59: Республика Саха (Якутия)
A60: 11.01.02 | G60: Республика Северная Осетия - Алания
A61: 11.01.03 | G61: Республика Татарстан
A62: 11.01.04 | G62: Республика Тыва
A63: 11.01.05 | G63: Республика Хакасия
A64: 11.01.06 | G64: Ростовская область
A65: 11.01.07 | G65: Рязанская область
A66: 11.01.08 | G66: Самарская область
A67: 11.01.09 | G67: Саратовская область
A68: 11.01.10 | G68: Сахалинская область
A69: 11.01.11 | G69: Свердловская область
A70: 11.01.12 | G70: Смоленская область
A71: 11.01.13 | G71: Ставропольский край
A72: 11.02.01 | G72: Тамбовская область
A73: 11.02.02 | G73: Тверская область
A74: 11.02.03 | G74: Томская область
A75: 11.02.04 | G75: Тульская область
A76: 11.02.05 | G76: Тюменская область
A77: 11.02.06 | G77: Удмуртская республика
A78: 11.02.07 | G78: Ульяновская область
A79: 11.02.08 | G79: Хабаровский край
A80: 11.02.09 | G80: Ханты-Мансийский автономный округ - Югра
A81: 11.02.10 | G81: Челябинская область
A82: 11.02.11 | G82: Чеченская Республика
A83: 11.02.12 | G83: Чувашская Республика
A84: 11.02.13 | G84: Чукотский автономный округ
A85: 11.02.14 | G85: Ямало-Ненецкий автономный округ
A86: 11.02.15 | G86: Ярославская область
A87: 11.02.16
A88: 12.01.01
A89: 12.01.02
A90: 12.01.03
A91: 12.01.04
A92: 12.01.05
A93: 12.01.06
A94: 12.01.07
A95: 12.01.08
A96: 12.01.09
A97: 12.02.01
A98: 12.02.02
A99: 12.02.03
A100: 12.02.04
A101: 12.02.05
A102: 12.02.06
A103: 12.02.07
A104: 12.02.08
A105: 12.02.09
A106: 12.02.10
A107: 13.01.01
A108: 13.01.02
A109: 13.01.03
A110: 13.01.04
A111: 13.01.05
A112: 13.01.06
A113: 13.01.07
A114: 13.01.08
A115: 13.01.09
A116: 13.01.10
A117: 13.01.11
A118: 13.01.12
A119: 13.01.13
A120: 13.01.14
A121: 13.02.01
A122: 13.02.02
A123: 13.02.03
A124: 13.02.04
A125: 13.02.05
A126: 13.02.06
A127: 13.02.07
A128: 13.02.08
A129: 13.02.09
A130: 13.02.10
A131: 13.02.11
A132: 14.02.01
A133: 14.02.02
A134: 14.02.03
A135: 15.01.01
A136: 15.01.02
A137: 15.01.03
A138: 15.01.04
A139: 15.01.05
A140: 15.01.06
A141: 15.01.07
A142: 15.01.08
A143: 15.01.09
A144: 15.01.10
A145: 15.01.11
A146: 15.01.12
A147: 15.01.13
A148: 15.01.14
A149: 15.01.15
A150: 15.01.16
A151: 15.01.17
A152: 15.01.18
A153: 15.01.19
A154: 15.01.20
A155: 15.01.21
A156: 15.01.22
A157: 15.01.23
A158: 15.01.24
A159: 15.01.25
A160: 15.01.26
A161: 15.01.27
A162: 15.01.28
A163: 15.01.29
A164: 15.01.30
A165: 15.01.31
A166: 15.01.32
A167: 15.01.33
A168: 15.01.34
A169: 15.01.35
A170: 15.01.36
A171: 15.02.01
A172: 15.02.02
A173: 15.02.03
A174: 15.02.04
A175: 15.02.05
A176: 15.02.06
A177: 15.02.07
A178: 15.02.08
A179: 15.02.09
A180: 15.02.10
A181: 15.02.11
A182: 15.02.12
A183: 15.02.13
A184: 15.02.14
A185: 15.02.15
A186: 18.01.01
A187: 18.01.02
A188: 18.01.03
A189: 18.01.04
A190: 18.01.05
A191: 18.01.06
A192: 18.01.07
A193: 18.01.08
A194: 18.01.09
A195: 18.01.10
A196: 18.01.11
A197: 18.01.12
A198: 18.01.13
A199: 18.01.14
A200: 18.01.15
... 378 more rows
